Cogmind - Beta 16.1 *** ADVENTURER MODE // 2026.02.24 @ 13:04:32 Player: triibiis Result: Destroyed by LW-PUF(R) with Subdweller Machine Gun Performance ------------- Evolutions (0) 0 Regions Visited (3) 600 Robots Destroyed (25) 125 Value Destroyed (624) 624 Prototype IDs (0) 0 Alien Tech Used (0) 0 Bonus (0) 0 TOTAL SCORE: 1349 Bonus ------- None Cogmind --------- Core Integrity 0/250 Matter 300/300 Energy 200/200 System Corruption 0% Temperature Cool (0) Movement Treading (480) Ox4 Location -10/Subcaves Parts ------- > --- POWER (1) -------- Subdweller Power Source > --- PROPULSION (2) --- Light Treads > --- UTILITY (2) ------ Huge Storage Unit Signal Interpreter > --- WEAPON (2) ------- Small Laser Subdweller Laser > --- INVENTORY (25) --- Subdweller Optics Sensor Array Light Assault Rifle Light Assault Rifle Peak State ------------ > --- POWER ------------ Light Nuclear Core > --- PROPULSION ------- Compact Wheel Compact Wheel > --- UTILITY ---------- Huge Storage Unit Signal Interpreter > --- WEAPON ----------- Small Laser Assault Rifle > --- INVENTORY -------- Light Treads Light Treads Sensor Array [Rating: 9] Favorites ----------- Power Light Nuclear Core Engine Light Ion Engine Power Core Light Nuclear Core Propulsion Light Treads Treads Light Treads Wheel Compact Wheel Utility Signal Interpreter Device Sensor Array Storage Huge Storage Unit Processor Signal Interpreter Weapon Small Laser Energy Gun Small Laser Ballistic Gun Light Assault Rifle Special Weapon Mining Laser Build | -11 -10 -10 -10 ------- Run | Yrd Mat Min Sub Slots Evolved . | . . . . Power . | . . . . Propulsion . | . . . . Utility . | . . . . Weapon . | . . . . Parts Attached 21 | 6 10 1 4 Power 3 | 1 1 . 1 Engine 2 | 1 . . 1 Core 1 | . 1 . . Reactor . | . . . . Propulsion 6 | 2 2 . 2 Treads 2 | . . . 2 Leg . | . . . . Wheel 4 | 2 2 . . Hover . | . . . . Flight . | . . . . Utility 5 | 1 4 . . Device 1 | . 1 . . Storage 2 | 1 1 . . Processor 2 | . 2 . . Hackware . | . . . . Protection . | . . . . Artifact . | . . . . Weapon 7 | 2 3 1 1 Energy Gun 3 | 1 1 . 1 Energy Cannon . | . . . . Ballistic Gun 3 | 1 1 1 . Ballistic Cannon . | . . . . Launcher . | . . . . Special Weapon 1 | . 1 . . Impact Weapon . | . . . . Slashing Weapon . | . . . . Piercing Weapon . | . . . . Special Melee Weapon . | . . . . Unidentified Prototypes . | . . . . Parts Lost 11 | . 5 3 3 Power 2 | . 1 . 1 Propulsion 5 | . 2 2 1 Utility . | . . . . Weapon 4 | . 2 1 1 Highest Loss Streak 3 | . 3 2 1 To Critical Strikes . | . . . . Average Backups 4 | 1 5 4 3 Power . | . . . . Propulsion 1 | . 3 2 . Utility . | . . 1 1 Weapon 1 | . . 1 2 Tool/Special . | . . . . Unused Backups 4 | . 3 . 1 Power 1 | . 1 . . Propulsion 1 | . 1 . . Utility . | . . . . Weapon 2 | . 1 . 1 Tool/Special . | . . . . Average Slot Usage (%) 84 | . 92 75 95 Engine 2 | . 10 . 1 Core 10 | . 3 14 10 Treads 7 | . . . 27 Wheel 8 | . 25 4 . Storage 13 | . 12 14 14 Processor 13 | . 11 14 14 Energy Gun 14 | . 13 14 15 Ballistic Gun 12 | . 13 13 11 Peak Build Rating 9 | 6 9 9 9 Average Rating 7 | 4 7 7 8 On Entrance 5 | . 6 9 7 Avg Prop Armor Cover (%) . | . . . . Naked Turns . | . . . . Heaviest Build 90 | 12 88 87 90 Greatest Support 40 | 26 32 32 40 Greatest Overweight (x) 28 | . 8 28 2 Average Overweight (x) 4 | . 1 12 2 Largest Inventory Capacity 25 | 8 25 25 25 Average Capacity 22 | 7 16 25 25 Most Carried 9 | 4 9 5 4 Average Carried 4 | 1 5 4 3 Final Capacity 25 | 8 25 25 25 Final Carried 5 | 4 5 5 4 Class Distribution -------------------- 100% | Mutant Dominant Class ---------------- Mutant | -10/Materials Mutant | -10/Mines Mutant | -10/Subcaves Resources | -11 -10 -10 -10 ----------- Run | Yrd Mat Min Sub Matter Collected 516 | 238 218 20 40 Remotely . | . . . . Salvage Created 714 | . 433 158 123 Parts 47 | . 27 13 7 Haulers Intercepted . | . . . . Recyclers Shooed . | . . . . Parts Field Recycled . | . . . . Retrieved Matter . | . . . . Parts Self-Destructed . | . . . . Prevented . | . . . . Parts Restored . | . . . . Kills | -11 -10 -10 -10 ------- Run | Yrd Mat Min Sub Combat Hostiles Destroyed 23 | . 12 8 3 Guns 21 | . 10 8 3 AOE 2 | . 2 . . Classes Destroyed 4 | . 3 . 1 Watcher 2 | . 2 . . Swarmer 11 | . 5 6 . Grunt 9 | . 7 2 . Subdweller 3 | . . . 3 Best Kill Streak 7 | . 7 3 2 Combat Bots Only 7 | . 7 3 2 Max Kills in Single Turn 2 | . 1 2 1 Gunslinging 1 | . . 1 . Exploded 1 | . 1 . . Melee . | . . . . Uniques/NPCs Destroyed . | . . . . Combat | -11 -10 -10 -10 -------- Run | Yrd Mat Min Sub Hostile Shots Fired 163 | . 66 61 36 Missed 43 | . 18 15 10 Hits 120 | . 48 46 26 Projectile 120 | . 48 46 26 Damage Taken 1127 | . 394 308 425 Core 258 | . 88 84 86 Absorbed by Shields . | . . . . Ignored by Resistances 343 | . 123 101 119 Core Remaining (%) 100 | 100 . . . Volleys Fired 87 | . 37 21 29 Largest 2 | . 2 2 2 Hottest 100 | . 60 60 100 Shots Fired 136 | . 62 30 44 Gun 136 | . 62 30 44 Cannon . | . . . . Launcher . | . . . . Special . | . . . . Kinetic 51 | . 32 9 10 Thermal 60 | . 5 21 34 Explosive . | . . . . Electromagnetic 25 | . 25 . . Robot Hit Streak 16 | . 13 14 16 Robot Miss Streak 2 | . 2 2 2 Penetration Max . | . . . . Secondary Targets 4 | . 2 2 . Max Gunslinging Chain 1 | . 1 1 . Shots Hit Robots 109 | . 45 26 38 Core Hits 41 | . 18 13 10 Critical Kills . | . . . . Critical Parts Destroyed . | . . . . Critical Strikes . | . . . . Melee Attacks . | . . . . Impact . | . . . . Slashing . | . . . . Piercing . | . . . . Sneak Attacks . | . . . . Combat Hostiles . | . . . . Follow-up Attacks . | . . . . Damage Inflicted 1617 | . 911 261 445 Guns 1272 | . 566 261 445 Cannons . | . . . . Explosions 345 | . 345 . . Melee . | . . . . Ramming . | . . . . Kinetic 399 | . 251 73 75 Thermal 799 | . 241 188 370 Explosive 136 | . 136 . . Electromagnetic 283 | . 283 . . Impact . | . . . . Slashing . | . . . . Piercing . | . . . . Highest Corruption . | . . . . Average Corruption . | . . . . Corruption Purged . | . . . . Corruption Blocked . | . . . . Overload Shots . | . . . . Overflow Damage 45 | . 45 . . Projectiles . | . . . . Explosions 45 | . 45 . . Melee . | . . . . Knockbacks . | . . . . Impact . | . . . . Kinetic . | . . . . Secondary . | . . . . Self-Inflicted Damage 5 | . 5 . . Shots 1 | . 1 . . Rammed . | . . . . Targets Rammed . | . . . . Kicked . | . . . . Crushed . | . . . . Highest Temperature 90 | . 30 90 4 Average Temperature 22 | . 15 31 4 Received Heat Transfer 333 | . 174 51 108 Siege Activations . | . . . . Martial Activations . | . . . . Shielding Activations . | . . . . Robots Disrupted . | . . . . Combat Hostiles . | . . . . Robots Corrupted . | . . . . Combat Hostiles . | . . . . Parts Fried . | . . . . Impact Corruptions . | . . . . Robots Melted . | . . . . Combat Hostiles . | . . . . Parts Melted 3 | . 1 1 1 Heat Transferred 1475 | . 325 425 725 Parts Sabotaged . | . . . . Parts Stolen . | . . . . Parts Stripped . | . . . . Power Chain Reactions 5 | . 5 . . Alert | -11 -10 -10 -10 ------- Run | Yrd Mat Min Sub Maximum Alert Level . | . . . . Low Security (%) 100 | 100 100 100 . Level 1 . | . . . . Level 2 . | . . . . Level 3 . | . . . . Level 4 . | . . . . Level 5 . | . . . . High Security . | . . . . Max Security . | . . . . Peak Influence 157 | . 157 91 . Initial 41 | . . 41 . Average 35 | . 74 18 . Influence Increases 592 | . 387 205 . Destroy 0b10 Robot/C 400 | . 240 160 . Destroy 0b10 Robot/NC 10 | . 10 . . Destroy Leader 94 | . 64 30 . Successful Hack 29 | . 29 . . Disable Machine 27 | . 27 . . Destroy Structure 17 | . 17 . . Lose Combat Pursuer 15 | . . 15 . Influence Decreases 592 | . 260 332 . Entered New Map 86 | . . 86 . Time Decay 426 | . 210 216 . Lost Part 80 | . 50 30 . Squads Dispatched 3 | . 3 . . Investigation 3 | . 3 . . Extermination . | . . . . Reinforcement . | . . . . Assault . | . . . . Garrison . | . . . . Intercept . | . . . . Searches Triggered . | . . . . Construction Impeded . | . . . . Haulers Reinforced . | . . . . Active Scanning Responses . | . . . . Cargo Convoy Interrupts . | . . . . Stealth | -11 -10 -10 -10 --------- Run | Yrd Mat Min Sub Distress Signals . | . . . . Communications Jammed . | . . . . Distress Signals . | . . . . Times Spotted 32 | . 19 9 4 Peak Tracking Total 3 | . 3 3 2 Tactical Retreats 1 | . . 1 . Traps | -11 -10 -10 -10 ------- Run | Yrd Mat Min Sub Traps Triggered 2 | . 2 . . Indirectly . | . . . . Trap Hack Attempts . | . . . . Triggered . | . . . . Disarmed . | . . . . Reprogrammed . | . . . . Reused . | . . . . Traps Extracted . | . . . . Installed . | . . . . Triggered . | . . . . Machines | -11 -10 -10 -10 ---------- Run | Yrd Mat Min Sub Machines Disabled 3 | . 3 . . Max in Single Turn 1 | . 1 . . Machines Repaired . | . . . . Machines Dismantled . | . . . . Machines Sabotaged . | . . . . Overloaded Fab Kills . | . . . . Hacking | -11 -10 -10 -10 --------- Run | Yrd Mat Min Sub Machines Accessed 5 | . 5 . . Terminals 5 | . 5 . . Fabricators . | . . . . Repair Stations . | . . . . Recycling Units . | . . . . Scanalyzers . | . . . . Garrison Access . | . . . . Total Hacks 16 | . 16 . . Successful 3 | . 3 . . Failed 13 | . 13 . . Catastrophic 4 | . 4 . . Database Lockouts . | . . . . Manual 15 | . 15 . . Terminals 16 | . 16 . . Fabricators . | . . . . Repair Stations . | . . . . Recycling Units . | . . . . Scanalyzers . | . . . . Garrison Access . | . . . . Terminal Hacks 3 | . 3 . . Level Access Points 1 | . 1 . . Branch Access Points 1 | . 1 . . Security Status 1 | . 1 . . Fabricator Hacks . | . . . . Repair Station Hacks . | . . . . Recycling Unit Hacks . | . . . . Scanalyzer . | . . . . Garrison Access Hacks . | . . . . Unauthorized Hacks . | . . . . Terminals . | . . . . Fabricators . | . . . . Repair Stations . | . . . . Recycling Units . | . . . . Scanalyzers . | . . . . Garrison Access . | . . . . Data Cores Recovered . | . . . . Used . | . . . . Hacking Detections 5 | . 5 . . Full Trace Events 4 | . 4 . . Feedback Events . | . . . . Feedback Blocked . | . . . . Robot Schematics Acquired . | . . . . Robots Built . | . . . . Authchips . | . . . . Time . | . . . . Total Robot Build Rating . | . . . . Part Schematics Acquired . | . . . . Parts Built . | . . . . Authchips . | . . . . Time . | . . . . Total Part Build Rating . | . . . . Part Studies Acquired . | . . . . Parts Repaired . | . . . . Time . | . . . . Parts Recycled . | . . . . Recycled Matter . | . . . . Retrieved Matter . | . . . . Retrieved Components . | . . . . Parts Scanalyzed . | . . . . Part Schematics Acquired . | . . . . Parts Damaged . | . . . . Bothacking | -11 -10 -10 -10 ------------ Run | Yrd Mat Min Sub Used RIF Installer . | . . . . Robots Hacked . | . . . . Non-combat . | . . . . Combat . | . . . . Robot Hacks Applied . | . . . . Relay Couplers Released . | . . . . Fabnet Peak Effective % . | . . . . Robots Rewired . | . . . . Allies Hacked . | . . . . Hacks Repelled . | . . . . Allies | -11 -10 -10 -10 -------- Run | Yrd Mat Min Sub Total Allies . | . . . . Largest Group . | . . . . Highest-Rated Group . | . . . . Highest-Rated Ally . | . . . . Total Orders . | . . . . Ally Attacks . | . . . . Total Damage . | . . . . Kills . | . . . . Allies Corrupted . | . . . . Allies Melted . | . . . . Intel | -11 -10 -10 -10 ------- Run | Yrd Mat Min Sub Active Infowar (turns) 152 | . 152 . . Optics 102 | . 102 . . Sensors 50 | . 50 . . Robot Analysis Total . | . . . . Derelict Logs Recovered . | . . . . Drone Launches . | . . . . Drone Recoveries . | . . . . Exploration | -11 -10 -10 -10 ------------- Run | Yrd Mat Min Sub Turns Passed 2163 | 49 493 1042 579 Spaces Moved 669 | 40 319 153 157 Core 62 | 1 . 61 . Treads 157 | . . . 157 Legs . | . . . . Wheels 450 | 39 319 92 . Hover . | . . . . Flight . | . . . . Fastest Speed 50 | 50 90 130 320 Average Speed 285 | 90 115 656 320 Slowest Speed 1450 | 100 200 1450 320 Overloaded Moves . | . . . . Propulsion Burnouts . | . . . . Robots Hopped . | . . . . Potential Cave-ins . | . . . . Cave-ins Triggered . | . . . . Exploration Rate (%) 29 | 3 63 39 11 Regions Visited 3 Branch Regions 2 Pre-discovered Areas . | . . . . Known Exits Taken 2 | . 1 1 . Unknown Exits Taken 1 | 1 . . . Scrap Searched . | . . . . Spaces Dug . | . . . . Terrain Destroyed 19 | . 19 . . Melee . | . . . . Projectile . | . . . . AOE 19 | . 19 . . Terrain Rammed . | . . . . Walls Destroyed . | . . . . Machines Disabled . | . . . . Actions | -11 -10 -10 -10 --------- Run | Yrd Mat Min Sub Total 796 | 49 381 175 191 Wait . | . . . . Move 666 | 39 318 152 157 Hop . | . . . . Pick Up 14 | 4 8 1 1 Fast Attach 16 | 6 7 1 2 Attach 7 | . 5 . 2 Detach 1 | . 1 . . Swap 1 | . 1 . . Drop 4 | . 4 . . Fire 87 | . 37 21 29 Melee . | . . . . Ram . | . . . . Kick . | . . . . Crush . | . . . . Escape Stasis . | . . . . Rewire . | . . . . Trap . | . . . . Miscellaneous . | . . . . Route ------- -11/Scrapyard -10/Materials (discovered 5 exits: *Mat x3 / *Min x2) -10/Mines -10/Subcaves History --------- Turn | Location | Event 25 | -11/Scrapyard | Discovered new exit (range 15) 50 | -11/Scrapyard | Entered Materials 165 | -10/Materials | Identified exit to Mines 192 | -10/Materials | Discovered new exit (range 5) 312 | -10/Materials | Build established: Mutant 348 | -10/Materials | Identified exit to Materials 446 | -10/Materials | Destroyed 7 combat bots 447 | -10/Materials | Lost 3 parts (1p1n1w) 543 | -10/Materials | Entered Mines 606 | -10/Mines | Found a hidden stash of uninstalled traps 669 | -10/Mines | Core integrity fell below 50% 1411 | -10/Mines | Discovered new exit (range 10) 1570 | -10/Mines | Identified exit to Subcaves 1585 | -10/Mines | Entered Subcaves 2042 | -10/Subcaves | Core integrity fell below 20% 2164 | -10/Subcaves | Destroyed by LW-PUF(R) with Subdweller Machine Gun Last Messages --------------- OS-C0Q(R) destroyed. Sub. Monowheel melted. AE-FJY(R) destroyed. Subatomizers dissect the Sub. Power Source. Acquired Sub. Power Source. Acquired Sub. Optics. Subatomizers dissect the Disposable Heat Sink. SD-WSO(R) destroyed. Acquired 30 matter. Subatomizers dissect the Disposable Heat Sink. Acquired Sub. Laser. Acquired 10 matter. Subatomizers dissect the Disposable Heat Sink. LW-PUF(R) affixes Scrap Shield Fragment to Scrap Shield. Lgt. Treads destroyed. Subatomizers dissect the Disposable Heat Sink. LW-PUF(R) affixes Scrap Shield Fragment to Scrap Shield. Map ----- +----------------------------------------------------+ | ?????????????????????????????????????????????????? | | ?????????????????????????????????????????????????? | | ?????????????????????????????????????????????????? | | ?????????????????????????????????????????????????? | | ?????????????????????????????????????????????????? | | ?????????????????????????????????????????????????? | | ?????????????????????????????????????????????????? | | ?????????????????????????????????????????????????? | | ####???####??????????????????????????????????????? | | # #### ##?????????????????????????????????????? | | ## #?????????????????????????????????????? | | #?############????????????????????????? | | #### # #????????????????????????? | | ## ##### ##???????????????????????? | | ## #??## ## # #???????????????????????? | | ### #### ############???????????????????????? | | ??# ## ###????????????????????????????????? | | ?## # ## ##?###???????????????????????????? | | ## #?# ###?????????????????????????? | | # ### ##????????????????????????? | | # ## # ## ##???????????????????????? | | # ## #### ## ##??????????????????????? | | ######??## !%& ##?????????????????????? | | ####????????##% #?????????????????????? | | #????????????## ### "#??????????????? | | ##?????????????#### @ !%R& #??????????????? | | #?????????????????##### ## ######??????????????? | | ??????????????????????#####??#???????????????????? | | ?????????????????????????????????????????????????? | | ?????????????????????????????????????????????????? | | ?????????????????????????????????????????????????? | | ?????????????????????????????????????????????????? | | ?????????????????????????????????????????????????? | | ?????????????????????????????????????????????????? | | ?????????????????????????????????????????????????? | | ?????????????????????????????????????????????????? | | ?????????????????????????????????????????????????? | | ?????????????????????????????????????????????????? | | ?????????????????????????????????????????????????? | | ?????????????????????????????????????????????????? | | ?????????????????????????????????????????????????? | | ?????????????????????????????????????????????????? | | ?????????????????????????????????????????????????? | | | | | | | | | | | | | | | +----------------------------------------------------+ Best States ------------- Heat Dissipation 25 Energy Generation 15 Energy Capacity 200 Matter Stores 300 Matter Capacity 300 Sight Range 18 Robot Scan Range 14 Terrain Scan Density 10 Resistance: KI 20 Resistance: TH 20 Resistance: EX 20 Resistance: EM 20 Resistance: I 20 Resistance: S 20 Resistance: P 20 Evasion (%) 42 Recoil Reduction 2 Offensive Hacking 10 Item Schematics ----------------- None Robot Schematics ------------------ None Fabricated ------------ Nothing Repaired ---------- Nothing Studied --------- None Alien Tech Used ----------------- None Achievements -------------- Overwhelming Challenges ------------ None Game ------ Seed FusionAutogunMachine Manual? 0 Play Time 00:14:00 Cumulative 23.1 hours Start 2026.02.24 @ 10:14:34 End 2026.02.24 @ 13:04:32 Sessions 3 Manual Loads 0 Difficulty Adventurer Special Mode None Game No. 62 Rogue 0 Adventurer 62 Explorer 0 Win Type - Total 0 Types 0/0/0/0/0/0/0/0/0/0 Lore% 21 Gallery% 19 Achievement% 16 Wizard Run 0 Options --------- Layout 1 ASCII 0 Keyboard 0 Movement Arrows Keybinds 0 Fullscreen 1 Font 36/Smallcaps Map View 50x43 Zoom Use 0% Tactical HUD 0 Map Filters NONE Filters NONE Steam 1 RUN: d099295a-9614-409a-8be8-3391ba6cbdae